bitfinex-derivatives/quotes_SOLF0:USTF0_20250127
["timestamp","ask_amount","ask_price","bid_price","bid_amount"]
[1737950956954,0.03126518,234.12,234.11,4.2734]
[1737950957957,6.518e-05,234.12,234.11,14.78184637]
[1737950958450,1.409,234.23,234.11,10.50844637]
[1737950958650,10.50844637,234.3,234.14,10.50844637]
[1737950958856,10.50844637,234.27,234.14,10.50844637]
[1737950959249,4.2707,234.26,234.11,10.50844637]
[1737950959452,10.50844637,234.27,234.11,10.50844637]
[1737950959652,0.03013022,234.21,234.19,4.2717]
[1737950960058,0.03013022,234.21,234.16,0.03126517]
[1737950960955,0.03013022,234.21,234.2,4.2717]
[1737950962951,3.022e-05,234.21,234.2,14.78014637]
[1737950963359,1.3735,234.32,234.31,4.2697]
[1737950963564,10.50844637,234.39,234.23,10.50844637]
[1737950963857,1.4081,234.38,234.32,4.2695]
[1737950964459,0.03254596,234.37,234.33,0.02935229]
[1737950965856,0.03254596,234.37,234.36,4.2688]
[1737950966653,0.03254596,234.37,234.34,4.269]
[1737950968664,0.03254596,234.37,234.36,4.2688]
[1737950970663,10.50844637,234.48,234.42,4.2676]
[1737950971160,4.267,234.46,234.31,10.50844637]
[1737950971763,0.03134267,234.41,234.36,0.03036681]
[1737950971963,0.03134267,234.41,234.4,4.2679]
[1737950976672,0.03134267,234.41,234.33,10.50844637]
[1737950977672,0.03134267,234.41,234.4,4.2679]
[1737950979071,0.03134267,234.41,234.35,0.03271355]
[1737950980174,0.03134267,234.41,234.39,4.2682]
[1737950980569,6.71396166,234.4,234.39,4.2682]
[1737950980769,0.03134267,234.41,234.4,4.2681]
[1737950982479,0.03134267,234.41,234.38,4.2683]
[1737950982672,6.71396166,234.4,234.38,4.2683]
[1737950983979,0.03134267,234.41,234.4,4.2681]
[1737950985576,0.03134267,234.41,234.35,0.03271355]
[1737950986275,0.03134267,234.41,234.39,4.2682]
[1737950986480,0.03134267,234.41,234.35,0.03271355]
[1737950986775,0.03134267,234.41,234.36,4.2687]
[1737950986975,0.03134267,234.41,234.35,0.03271355]
[1737950987178,4.29934267,234.41,234.35,0.03271355]
[1737950987379,0.03134267,234.41,234.36,4.2686]
[1737950987577,0.03134267,234.41,234.35,0.03271355]
[1737950987778,4.2684,234.39,234.35,0.03271355]
[1737950987976,0.03134267,234.41,234.35,0.03271355]
[1737950988380,4.2685,234.38,234.35,0.03271355]
[1737950989179,10.4895399,234.39,234.35,0.03271355]
[1737950989384,4.2688,234.36,234.35,0.03271355]
[1737950992787,10.4895399,234.39,234.35,0.03271355]
[1737950993587,10.4895399,234.39,234.35,4.30171355]
[1737950993882,10.4895399,234.39,234.35,0.03271355]
[1737950994086,10.4895399,234.36,234.35,0.03271355]
[1737950994288,10.4895399,234.36,234.18,13.2050399]
[1737950994482,14.7590399,234.33,234.18,13.2050399]
[1737950994686,10.4895399,234.33,234.18,13.2050399]
[1737950995284,14.7589399,234.33,234.27,4.2703]
[1737950995484,0.03223854,234.28,234.27,4.2703]
[1737950996786,3.854e-05,234.28,234.27,4.2703]
[1737950997391,3.854e-05,234.28,234.27,14.7598399]
[1737950998480,3.854e-05,234.28,234.27,4.2703]
[1737951002491,3.854e-05,234.28,234.27,14.7598399]
[1737951003085,3.854e-05,234.28,234.27,4.2703]
[1737951008492,3.854e-05,234.28,234.25,4.2707]
[1737951008690,4.27033854,234.28,234.23,0.03074442]
[1737951009297,4.27033854,234.28,234.24,4.2709]
[1737951009500,3.854e-05,234.28,234.23,0.03074442]
[1737951009700,10.4895399,234.27,234.23,0.03074442]
[1737951010500,14.7601399,234.27,234.23,0.03074442]
[1737951010701,10.4895399,234.27,234.23,0.03074442]
[1737951011091,3.854e-05,234.28,234.23,0.03074442]
[1737951012000,3.854e-05,234.28,234.26,4.2705]
[1737951012501,3.854e-05,234.28,234.23,0.03074442]
[1737951012698,3.854e-05,234.28,234.27,4.2704]
[1737951017198,3.854e-05,234.28,234.27,14.7599399]
[1737951019100,5.6092,234.43,234.39,4.2682]
[1737951019402,1.3416,234.43,234.39,4.2682]
[1737951019997,1.3416,234.43,234.37,4.2684]
[1737951020198,4.2678,234.42,234.39,0.03106091]
[1737951020402,4.2678,234.42,234.3,10.4895399]
[1737951020604,4.2678,234.42,234.38,0.02859972]
[1737951021105,5.63767986,234.43,234.38,4.29699972]
[1737951021603,1.37017986,234.43,234.38,0.02859972]
[1737951022404,4.268,234.41,234.38,0.02859972]
[1737951023399,14.7572399,234.42,234.38,0.02859972]
[1737951023600,10.4895399,234.42,234.38,0.02859972]
[1737951023803,0.02857986,234.43,234.38,0.02859972]
[1737951024405,0.02857986,234.43,234.42,4.2677]
[1737951025497,33.94904266,234.54,234.5,4.2661]
[1737951025899,23.45950276,234.54,234.42,10.4895399]
[1737951026104,23.45950276,234.54,234.36,10.4895399]
[1737951026105,23.45950276,234.54,234.53,4.2657]
[1737951026601,23.45950276,234.54,234.45,10.4895399]
[1737951026808,23.45950276,234.54,234.51,4.29402595]
[1737951027008,23.45950276,234.54,234.51,0.02812595]
[1737951027808,1.43398759,234.56,234.51,0.02812595]
[1737951028008,1.43398759,234.56,234.52,4.2659]
[1737951029106,1.43398759,234.56,234.51,0.02812595]
[1737951029307,5.69928759,234.56,234.51,0.02812595]
[1737951029604,1.43398759,234.56,234.51,0.02812595]
[1737951030210,4.2656,234.54,234.51,0.02812595]
[1737951030509,1.43398759,234.56,234.51,0.02812595]
[1737951030906,4.2657,234.53,234.51,0.02812595]
[1737951035811,4.2665,234.49,234.43,4.2675]
[1737951036010,10.4895399,234.51,234.35,10.4895399]
[1737951036309,4.2678,234.42,234.36,4.2687]
[1737951036611,10.4895399,234.44,234.28,10.4895399]
[1737951037015,0.03268873,234.38,234.34,0.02762412]
[1737951037607,4.2688,234.36,234.34,0.02762412]
[1737951038208,4.30128873,234.38,234.34,0.02762412]
[1737951039010,0.03268873,234.38,234.34,0.02762412]
[1737951039210,4.2686,234.37,234.34,0.02762412]
[1737951040313,10.52222863,234.38,234.2,4.2716]
[1737951040614,10.4895399,234.28,234.09,2.7886]
[1737951040815,1.4195,234.27,234.09,2.7886]
[1737951041416,0.02696657,234.22,234.18,0.02969401]
[1737951042715,0.02696657,234.22,234.2,4.2716]
[1737951043418,6.657e-05,234.22,234.2,14.7611399]
[1737951043915,4.408,234.35,234.2,10.4895399]
[1737951044115,4.408,234.35,234.29,4.27]
[1737951044319,4.2692,234.34,234.19,10.4895399]
[1737951044618,10.4895399,234.32,234.16,10.4895399]
[1737951045520,0.03191759,234.26,234.22,0.03267597]
[1737951046117,0.03191759,234.26,234.22,4.30397597]
[1737951046621,0.03191759,234.26,234.23,4.2712]
[1737951047319,0.03191759,234.26,234.22,0.03267597]
[1737951047521,0.03191759,234.26,234.22,4.30397597]
[1737951048122,0.03191759,234.26,234.22,0.03267597]
[1737951048816,0.03191759,234.26,234.23,4.2711]
[1737951049022,0.03191759,234.26,234.22,0.03267597]
[1737951049818,0.03191759,234.26,234.25,4.2708]
[1737951056121,1.759e-05,234.26,234.25,4.2708]
[1737951060223,16.80672212,234.44,234.38,4.2683]
[1737951060425,1.3283,234.45,234.27,16.80672212]
[1737951060826,1.3283,234.45,234.4,4.268]
[1737951061427,0.0327978,234.45,234.41,4.2678]
[1737951061627,0.0327978,234.45,234.4,0.03199686]
[1737951061930,4.2999978,234.45,234.4,0.03199686]
[1737951063933,4.2999978,234.45,234.4,4.30009686]
[1737951064734,16.80672212,234.44,234.4,0.03199686]
[1737951065228,4.2679,234.41,234.4,0.03199686]
[1737951066236,16.80672212,234.44,234.35,4.2689]
[1737951066433,16.80672212,234.4,234.28,4.2702]
[1737951066729,16.80672212,234.4,234.23,4.0663]
[1737951066934,4.269,234.35,234.23,4.0663]
[1737951067327,0.02959426,234.31,234.27,0.03000427]
[1737951068228,0.02959426,234.31,234.3,4.2699]
[1737951070141,0.02959426,234.31,234.27,0.03000427]
[1737951071939,0.02959426,234.31,234.3,4.2699]
[1737951073540,0.02959426,234.31,234.27,0.03000427]
[1737951073732,0.02959426,234.31,234.28,4.2702]
[1737951074141,0.02959426,234.31,234.27,4.30040427]
[1737951074540,0.02959426,234.31,234.27,0.03000427]
[1737951076142,0.02959426,234.31,234.28,4.2703]
[1737951076939,0.02959426,234.31,234.27,0.03000427]
[1737951077133,0.02959426,234.31,234.27,4.30040427]
[1737951077333,0.02959426,234.31,232.57,75.83633813]
[1737951077334,10.49817097,234.29,234.04,21.28794654]
[1737951077538,10.49817097,234.2,234.06,1.4203]
[1737951078346,4.2724,234.17,234.08,4.2739]
[1737951078643,0.03261079,234.15,234.11,0.02876966]
[1737951078847,0.03261079,234.15,234.13,4.2729]
[1737951079036,0.03261079,234.15,234.11,0.02876966]
[1737951079937,0.03261079,234.15,234.14,4.2728]
[1737951081344,0.03261079,234.15,234.12,4.2731]
[1737951082143,0.03261079,234.15,234.11,4.30196966]
[1737951082544,0.03261079,234.15,234.11,0.02876966]
[1737951082746,0.03261079,234.15,234.12,4.2731]
[1737951082946,0.03261079,234.15,234.11,0.02876966]
[1737951083646,0.03261079,234.15,234.14,4.2728]
[1737951086549,0.03261079,234.15,234.11,0.02876966]
[1737951086850,0.03261079,234.15,234.12,4.2732]
[1737951087949,0.03261079,234.15,234.11,0.02876966]
[1737951090246,4.30531079,234.15,234.11,0.02876966]
[1737951090749,4.30531079,234.15,234.11,4.30206966]
[1737951090750,0.03261079,234.15,234.11,4.30206966]
[1737951091351,0.03261079,234.15,234.13,4.273]
[1737951092051,0.03261079,234.15,234.14,4.2728]
[1737951096149,10.49817097,234.27,234.12,10.49817097]
[1737951096652,14.76867097,234.27,234.22,4.2713]
[1737951096945,10.49817097,234.27,234.12,10.49817097]
[1737951097343,0.03149339,234.22,234.18,4.272]
[1737951097548,0.03149339,234.22,234.17,0.02977094]
[1737951098654,0.03149339,234.22,234.21,4.2715]
[1737951100151,10.49817097,234.3,234.21,4.2715]
[1737951100358,10.49817097,234.39,234.24,10.49817097]
[1737951101450,0.02695578,234.34,234.29,0.02807047]
[1737951102052,0.02695578,234.34,234.31,4.2696]
[1737951102550,10.49817097,234.32,234.08,10.49817097]
[1737951102858,10.49817097,234.21,234.05,2.6399]
[1737951103753,0.0283106,234.15,234.11,0.02809572]
[1737951104453,10.52648157,234.15,234.11,0.02809572]
[1737951104955,4.2731,234.13,234.11,0.02809572]
[1737951106958,4.2733,234.12,233.98,27.67255216]
[1737951107157,16.82647407,234.17,233.98,27.67255216]
[1737951107558,4.2736,234.1,234.01,4.2752]
[1737951108159,0.0278591,234.08,234.03,0.03280342]
[1737951111056,4.2742,234.07,234.03,0.03280342]
[1737951111356,0.0278591,234.08,234.03,0.03280342]
[1737951112162,0.0278591,234.08,233.89,16.82647407]
[1737951112664,16.82647407,234.13,233.89,16.82647407]
[1737951113063,4.2745,234.05,233.99,4.2755]
[1737951113263,0.03140624,234.03,233.99,4.2755]
[1737951113463,0.03140624,234.03,233.89,16.82647407]
[1737951114056,0.03140624,234.03,234.02,4.275]
[1737951114257,0.03140624,234.03,233.89,16.82647407]
[1737951114867,0.03140624,234.03,233.98,4.2757]
[1737951116265,4.2751,234.02,233.93,4.2766]
[1737951116462,0.03140624,234.03,233.85,19.58567407]
[1737951116666,16.82647407,234.04,233.85,2.7592]
[1737951116867,4.2757,233.99,233.95,4.2763]
[1737951117068,0.02822552,233.96,233.95,4.2763]
[1737951117366,0.0322549,233.98,233.85,19.58567407]
[1737951117766,4.2749,234.03,233.85,19.58567407]
[1737951117965,3.137e-05,233.94,233.85,19.58567407]
[1737951118868,3.137e-05,233.94,233.93,4.2767]
[1737951125374,3.137e-05,233.94,233.91,4.2768]
[1737951125871,3.137e-05,233.94,233.87,0.02787737]
[1737951126175,3.137e-05,233.94,233.92,4.2767]
[1737951127175,3.137e-05,233.94,233.87,0.02787737]
[1737951127575,10.53170978,233.94,233.87,0.02787737]
[1737951127778,4.2768,233.93,233.88,4.2776]
[1737951128081,10.53170978,233.94,233.87,0.02787737]
[1737951128474,10.53170978,233.94,233.9,4.2772]
[1737951129185,10.53170978,233.94,233.89,4.2774]
[1737951130177,10.53170978,233.94,233.87,0.02787737]
[1737951130377,10.53167841,233.88,233.71,10.53167841]
[1737951130679,10.53167841,233.88,233.71,13.22277841]
[1737951131379,4.2778,233.87,233.81,4.2788]
[1737951131578,0.02815415,233.82,233.71,13.22277841]
[1737951132180,0.02815415,233.82,233.81,4.2788]
[1737951133884,0.02815415,233.82,233.71,2.6911]
[1737951134581,0.02815415,233.82,233.71,13.22277841]
[1737951135581,0.02815415,233.82,233.71,2.6911]
[1737951135783,0.02815415,233.82,233.74,4.2801]
[1737951135982,0.02815415,233.82,233.71,2.6911]
[1737951136577,0.02815415,233.82,233.8,4.279]
[1737951136880,0.02815415,233.82,233.71,2.6911]
[1737951137086,0.02815415,233.82,233.71,13.22277841]
[1737951137383,0.02815415,233.82,233.81,4.2788]
[1737951137581,10.53167841,233.91,233.74,10.53167841]
[1737951137787,10.53167841,233.91,233.81,4.2788]
[1737951137983,10.53167841,233.91,233.77,10.53167841]
[1737951138484,10.53167841,233.94,233.77,10.53167841]
[1737951138682,10.53167841,233.94,233.8,10.53167841]
[1737951138884,9.1e-05,233.86,233.82,0.03013269]
[1737951139084,10.53167841,233.97,233.81,1.3451]
[1737951139280,3.1,233.99,233.75,1.3945]
[1737951139582,10.53167841,233.84,233.73,1.3451]
[1737951139783,10.53167841,233.77,233.61,10.53167841]
[1737951139987,10.53167841,233.77,233.76,0.03260683]
[1737951140186,14.81137841,233.77,233.65,4.2816]
[1737951140388,10.53167841,233.77,233.61,10.53167841]
[1737951141185,10.53167841,233.8,233.64,10.53167841]
[1737951141386,10.53167841,233.77,233.61,10.53167841]
[1737951141594,0.02959485,233.7,233.66,0.02931181]
[1737951141996,0.02959485,233.7,233.68,4.2811]
[1737951142182,0.02959485,233.7,233.66,0.02931181]
[1737951142786,0.02959485,233.7,233.68,4.2812]
[1737951143591,3.2,233.82,233.72,4.2804]
[1737951143796,3.2,233.82,233.67,10.53167841]
[1737951145294,0.03194409,233.77,233.72,0.02705511]
[1737951146196,0.03194409,233.77,233.75,4.2799]
[1737951146399,10.53167841,233.89,233.73,1.3402]
[1737951146591,10.53167841,233.89,233.73,11.87187841]
[1737951146795,3.2,233.9,233.76,10.53167841]
[1737951147395,10.53167841,233.84,233.68,10.53167841]
[1737951147693,10.53167841,233.84,233.66,2.7044]
[1737951147891,10.53167841,233.8,233.74,0.02761666]
[1737951148089,0.03046445,233.77,233.74,0.02761666]
[1737951149196,0.03046445,233.77,233.74,4.30771666]
[1737951149593,0.03046445,233.77,233.74,0.02761666]
[1737951150393,10.53167841,233.88,233.74,0.02761666]
[1737951150698,3.26,233.89,233.75,10.53167841]
[1737951150895,3.26,233.89,233.76,2.8292]
[1737951151291,10.53167841,233.92,233.76,2.8292]
[1737951151494,10.53167841,233.95,233.8,0.03214245]
[1737951151697,10.53167841,233.95,233.78,10.53167841]
[1737951151893,14.80757841,233.98,233.82,10.53167841]
[1737951152192,10.53167841,233.98,233.78,10.53167841]
[1737951152400,10.53167841,233.95,233.78,10.53167841]
[1737951152693,16.85536896,233.93,233.73,16.85536896]
[1737951152996,0.02986721,233.89,233.84,0.03089102]
[1737951153197,4.2779,233.87,233.84,0.03089102]
[1737951153387,0.02986721,233.89,233.84,0.03089102]
[1737951153698,4.30736721,233.89,233.84,0.03089102]
[1737951153898,0.02986721,233.89,233.84,0.03089102]
[1737951155093,4.30726721,233.89,233.84,0.03089102]
[1737951155399,0.02986721,233.89,233.84,0.03089102]
[1737951155799,4.2781,233.86,233.84,0.03089102]
[1737951156498,0.02986721,233.89,233.84,0.03089102]
[1737951157703,4.2781,233.86,233.64,16.85536896]
[1737951157998,16.85536896,233.88,233.7,2.859]
[1737951158498,4.2785,233.83,233.77,4.2795]
[1737951158997,0.02881434,233.82,233.78,0.0276608]
[1737951159190,4.30751434,233.82,233.78,0.0276608]
[1737951159696,0.02881434,233.82,233.78,0.0276608]
[1737951160296,0.02881434,233.82,233.81,4.2788]
[1737951160899,1.434e-05,233.82,233.81,4.2788]
[1737951165207,4.2792,233.79,233.78,0.0276608]
[1737951165507,1.434e-05,233.82,233.78,0.0276608]
[1737951166802,4.27881434,233.82,233.78,0.0276608]
[1737951167006,1.434e-05,233.82,233.78,0.0276608]
[1737951167901,4.2791,233.8,233.78,0.0276608]
[1737951168906,1.434e-05,233.82,233.78,0.0276608]
[1737951169111,4.2792,233.79,233.78,0.0276608]
[1737951170111,1.434e-05,233.82,233.78,0.0276608]
[1737951170410,4.279,233.81,233.78,0.0276608]
[1737951172220,1.434e-05,233.82,233.78,0.0276608]
[1737951172422,4.2792,233.79,233.78,0.0276608]
[1737951175919,1.434e-05,233.82,233.81,4.2788]
[1737951178118,1.434e-05,233.82,233.79,1.3899]
[1737951179223,1.434e-05,233.82,233.78,0.0276608]
[1737951179626,10.54674932,233.82,233.78,0.0276608]
[1737951179818,4.2791,233.8,233.78,0.0276608]
[1737951181128,4.2792,233.79,233.78,0.0276608]
[1737951182123,10.54674932,233.82,233.78,0.0276608]
[1737951182426,1.434e-05,233.82,233.78,0.0276608]
[1737951184128,1.434e-05,233.82,233.79,4.2792]
[1737951184327,1.434e-05,233.82,233.78,0.0276608]
[1737951184928,1.434e-05,233.82,233.8,4.2789]
[1737951185226,1.434e-05,233.82,233.78,0.0276608]
[1737951186126,1.434e-05,233.82,233.79,4.2792]
[1737951186330,10.54673498,233.81,233.6,10.54673498]
[1737951186520,10.54673498,233.76,233.66,1.4391]
[1737951186720,10.54673498,233.8,233.66,1.4391]
[1737951187629,0.03157957,233.75,233.71,0.03233076]
[1737951188829,0.03157957,233.75,233.72,4.2805]
[1737951189030,0.03157957,233.75,233.71,0.03233076]
[1737951189632,4.2803,233.74,233.71,0.03233076]
[1737951190727,0.03157957,233.75,233.71,0.03233076]
[1737951191123,7.4983,233.85,233.78,4.2793]
[1737951191323,3.22,233.85,233.72,1.4058]
[1737951192133,3.22,233.85,233.8,4.279]
[1737951192336,0.03064836,233.81,233.8,4.279]
[1737951192733,23.45950276,233.9,233.82,4.2786]
[1737951193032,23.45950276,233.9,233.79,10.54673498]
[1737951193230,10.54673498,233.95,233.79,10.54673498]
[1737951193826,0.03218068,233.89,233.85,0.02818357]
[1737951194728,0.03218068,233.89,233.86,4.2779]
[1737951194933,0.03218068,233.89,233.85,0.02818357]
[1737951197734,4.2776,233.88,233.85,0.02818357]
[1737951198034,0.03218068,233.89,233.85,0.02818357]
[1737951198638,4.30958068,233.89,233.85,0.02818357]
[1737951199328,4.2779,233.86,233.85,0.02818357]
[1737951199536,4.2779,233.86,233.77,1.3662]
[1737951199737,16.8565693,233.92,233.77,1.3662]
[1737951200529,16.8565693,233.92,233.82,0.03216036]
[1737951200735,0.03001164,233.87,233.83,4.2784]
[1737951201231,4.2779,233.86,233.82,0.03216036]
[1737951201740,0.03001164,233.87,233.82,0.03216036]
[1737951201937,4.30781164,233.87,233.82,0.03216036]
[1737951202632,4.30781164,233.87,233.85,4.278]
[1737951202633,0.03001164,233.87,233.85,4.278]
[1737951202832,0.03001164,233.87,233.82,0.03216036]
[1737951203642,0.03001164,233.87,233.86,4.2779]
[1737951204241,0.03001164,233.87,233.83,1.3557]
[1737951206044,0.03001164,233.87,233.86,4.2779]
[1737951211947,0.5231,234.03,233.92,4.2768]
[1737951212248,4.2761,233.96,233.83,1.3557]
[1737951213150,0.03169603,233.92,233.87,0.03045376]
[1737951213642,9.603e-05,233.92,233.91,4.277]
[1737951216047,9.603e-05,233.92,233.91,14.80420509]
[1737951216245,17.59462707,234.11,233.91,10.52720509]
[1737951216549,17.59462707,234.11,234.01,10.52720509]
[1737951216744,4.2735,234.11,234.05,4.2744]
[1737951217145,4.2744,234.06,233.98,10.52720509]
[1737951217448,0.0300096,234.04,234.0,4.30319955]
[1737951217648,0.0300096,234.04,234.0,0.02789955]
[1737951217851,10.52720509,234.16,234.06,4.2742]
[1737951218145,0.03083545,234.13,234.06,4.2742]
[1737951218346,0.03083545,234.13,234.09,0.03265907]
[1737951219953,4.30393545,234.13,234.09,0.03265907]
[1737951220550,0.03083545,234.13,234.09,0.03265907]
[1737951221953,0.03083545,234.13,234.1,10.52720509]
[1737951222153,0.03083545,234.13,234.12,4.2732]
[1737951223354,10.52720509,234.25,234.15,4.2726]
[1737951223654,4.2713,234.23,234.13,10.52720509]
[1737951223953,130.1075138,234.39,234.11,1.4179]
[1737951223954,11.84790509,234.31,234.2,4.2716]
[1737951224149,11.84790509,234.31,234.16,10.52720509]
[1737951224348,10.52720509,234.31,234.16,10.52720509]
[1737951224551,0.5275,234.35,234.23,4.2711]
[1737951224552,0.03236915,234.26,234.23,4.2711]
[1737951224855,3.16,234.36,234.22,10.52720509]
[1737951225155,0.02750585,234.27,234.25,4.2708]
[1737951227761,1.3506,234.39,234.25,10.52720509]
[1737951228958,0.03268461,234.34,234.3,0.032208]
[1737951229354,10.5598897,234.34,234.3,0.032208]
[1737951231065,4.2697,234.31,234.3,0.032208]
[1737951236168,4.2708,234.26,234.19,10.52720509]
[1737951236366,10.52720509,234.31,234.16,11.83870509]
[1737951236667,13.64720509,234.31,234.16,11.83870509]
[1737951236867,3.12,234.31,234.19,10.52720509]
[1737951237465,0.03189491,234.27,234.23,0.02907182]
[1737951238277,0.03189491,234.27,234.26,4.2706]
[1737951239169,10.5591,234.27,234.01,25.08905197]
[1737951239472,10.5591,234.27,233.93,4.1748]
[1737951239473,10.52720509,234.14,233.97,10.52720509]
[1737951239669,10.52720509,234.11,234.0,4.2754]
[1737951240375,4.30124103,234.08,234.03,0.02847619]
[1737951240570,0.02734103,234.08,234.03,0.02847619]
[1737951243071,4.2745,234.05,234.03,0.02847619]
[1737951244477,16.83682233,234.04,233.84,1.3573]
[1737951244684,4.2752,234.01,233.85,2.7994]
[1737951244975,3.16,234.01,233.9,4.2771]
[1737951245577,7.4352,234.01,233.91,4.277]
[1737951245773,0.03145737,233.98,233.93,0.03253016]
[1737951249575,0.03145737,233.98,233.93,4.30913016]
[1737951251169,0.03145737,233.98,233.96,4.276]
[1737951251374,0.03145737,233.98,233.93,0.03253016]
[1737951252878,0.03145737,233.98,233.93,4.30903016]
[1737951253278,0.03145737,233.98,233.93,0.03253016]
[1737951253578,0.03145737,233.98,233.94,4.2763]
[1737951255474,4.2761,233.96,233.93,0.03253016]
[1737951255680,0.03145737,233.98,233.93,0.03253016]
[1737951256379,4.2764,233.95,233.93,0.03253016]
[1737951258475,0.03145737,233.98,233.93,0.03253016]
[1737951258681,4.2762,233.96,233.93,0.03253016]
[1737951259682,4.2763,233.95,233.93,0.03253016]
[1737951260783,4.2761,233.97,233.93,0.03253016]
[1737951261285,0.03145737,233.98,233.93,0.03253016]
[1737951261286,4.2761,233.96,233.93,0.03253016]
[1737951261578,0.03145737,233.98,233.93,0.03253016]
[1737951262579,4.2765,233.94,233.93,0.03253016]
[1737951267184,10.5354809,233.95,233.85,2.7994]
[1737951267390,10.5354809,233.88,233.73,35.56666343]
[1737951267589,10.5354809,233.88,233.77,1.4054]
[1737951267789,4.2783,233.84,233.77,1.4054]
[1737951267989,10.5354809,233.85,233.77,1.4054]
[1737951268390,4.2789,233.81,233.77,1.4054]
[1737951268688,0.02744508,233.83,233.79,0.02952038]
[1737951268983,4.2787,233.82,233.79,0.02952038]
[1737951269384,0.02744508,233.83,233.79,0.02952038]
[1737951270482,4.30604508,233.83,233.79,0.02952038]
[1737951270681,0.02744508,233.83,233.79,0.02952038]
[1737951272092,4.30604508,233.83,233.79,0.02952038]
[1737951272990,4.2789,233.81,233.79,0.02952038]
[1737951273891,0.02744508,233.83,233.79,0.02952038]
[1737951274087,4.279,233.8,233.79,0.02952038]
[1737951274284,4.279,233.8,233.79,2.038e-05]
[1737951274488,4.2801,233.74,233.68,4.2812]
[1737951274684,10.5354809,233.75,233.65,4.1261]
[1737951275586,4.2803,233.73,233.68,0.0272114]
[1737951275789,0.028796,233.72,233.68,0.0272114]
[1737951277193,0.028796,233.72,233.69,4.281]
[1737951278496,0.028796,233.72,233.7,4.2809]
[1737951278893,0.028796,233.72,233.68,0.0272114]
[1737951279795,0.028796,233.72,233.68,4.3083114]
[1737951281596,0.028796,233.72,233.69,4.281]
[1737951282702,0.028796,233.72,233.68,0.0272114]
[1737951282896,0.028796,233.72,233.68,4.3084114]
[1737951283502,10.5354809,233.78,233.68,4.3084114]
[1737951283503,10.5354809,233.78,233.68,0.0272114]
[1737951283802,10.5354809,233.81,233.68,0.0272114]
[1737951283999,4.2789,233.81,233.68,0.0272114]
[1737951284198,4.2789,233.81,233.67,10.5354809]
[1737951284799,0.03116838,233.76,233.72,0.02695666]
[1737951285001,4.2789,233.81,233.72,0.02695666]
[1737951285199,10.5354809,233.81,233.72,0.02695666]
[1737951285597,4.2787,233.82,233.77,4.2795]
[1737951285801,3.04,233.83,233.7,10.5354809]
[1737951286105,0.03266141,233.79,233.76,4.2796]
[1737951286608,0.03266141,233.79,233.75,1.3489]
[1737951286800,0.03266141,233.79,233.77,4.2796]
[1737951287106,4.2786,233.83,233.77,4.2796]
[1737951288001,4.2786,233.83,233.75,2.7516]
[1737951288201,0.03187857,233.81,233.78,4.2794]
[1737951288908,0.03187857,233.81,233.8,4.279]
[1737951289702,0.03187857,233.81,233.77,0.0319926]
[1737951293112,0.03187857,233.81,233.8,4.279]
[1737951293911,0.03187857,233.81,233.77,4.3115926]
[1737951295114,0.03187857,233.81,233.77,0.0319926]
[1737951295313,4.2791,233.8,233.77,0.0319926]
[1737951296006,0.03187857,233.81,233.77,0.0319926]
[1737951296608,4.2794,233.78,233.77,0.0319926]
[1737951297406,14.8148809,233.78,233.77,0.0319926]
[1737951301211,10.5354809,233.78,233.65,4.2014]
[1737951302014,4.2804,233.73,233.66,4.2814]
[1737951302215,10.5354809,233.78,233.65,4.2014]
[1737951302513,0.02818304,233.72,233.67,0.03073109]
[1737951303412,0.02818304,233.72,233.68,4.2811]
[1737951303606,13.5554809,233.81,233.67,10.56621199]
[1737951303811,13.5554809,233.81,233.67,10.5354809]
[1737951304311,13.5554809,233.81,233.65,4.2014]
[1737951304611,10.5354809,233.78,233.65,4.2014]
[1737951304813,0.03020701,233.75,233.71,0.03037368]
[1737951305318,4.2803,233.74,233.71,0.03037368]
[1737951306015,0.03020701,233.75,233.71,0.03037368]
[1737951306215,4.31020701,233.75,233.71,0.03037368]
[1737951307019,4.2801,233.74,233.71,0.03037368]
[1737951307619,4.2805,233.72,233.71,0.03037368]
[1737951308321,14.8159809,233.72,233.71,0.03037368]
[1737951309013,10.5354809,233.72,233.5,10.5354809]
[1737951309214,10.5354809,233.6,233.45,4.2136]
[1737951310117,0.02839993,233.55,233.45,4.2136]
[1737951310419,0.02839993,233.55,233.5,0.02874405]
[1737951310814,0.02839993,233.55,233.53,4.284]
[1737951311020,10.5354809,233.6,233.53,4.284]
[1737951311215,10.5354809,233.56,233.5,0.02874405]
[1737951311422,10.5354809,233.52,233.5,0.02874405]
[1737951311615,10.5354809,233.56,233.5,0.02874405]
[1737951312013,10.5354809,233.56,233.5,4.31314405]
[1737951312320,0.03121436,233.55,233.5,0.02874405]
[1737951313822,0.03121436,233.55,233.51,4.2843]